bitfinex-derivatives/quotes_BTCF0:USTF0_20250514
["timestamp","ask_amount","ask_price","bid_price","bid_amount"]
[1747201949527,0.002,104040.0,104030.0,0.1922618]
[1747201949726,0.002,104040.0,104030.0,0.67142117]
[1747201949930,0.002,104040.0,104030.0,0.78144668]
[1747201950136,0.164,104040.0,104030.0,2.37756817]
[1747201950435,0.164,104040.0,104030.0,2.38734672]
[1747201950634,0.164,104040.0,104030.0,2.74814672]
[1747201950835,0.166,104040.0,104030.0,2.74814672]
[1747201951136,0.168,104040.0,104030.0,2.74814672]
[1747201951936,0.166,104040.0,104030.0,2.74814672]
[1747201952132,0.164,104040.0,104030.0,2.75114672]
[1747201955236,0.164,104040.0,104030.0,1.25114672]
[1747201955436,0.16962071,104040.0,104030.0,1.25114672]
[1747201955635,0.16962071,104040.0,104030.0,2.75114672]
[1747201956831,0.16962071,104040.0,104030.0,2.89745718]
[1747201958740,0.16962071,104040.0,104030.0,2.88767863]
[1747201959440,0.16962071,104040.0,104030.0,2.76931926]
[1747201959643,0.16962071,104040.0,104030.0,2.88767863]
[1747201960043,0.16962071,104040.0,104030.0,2.74136817]
[1747201963244,0.16962071,104040.0,104030.0,2.70065571]
[1747201965838,0.16962071,104040.0,104030.0,2.6230088]
[1747201966142,0.16962071,104040.0,104030.0,2.70065571]
[1747201968948,0.16962071,104040.0,104030.0,1.97905571]
[1747201969147,0.16962071,104040.0,104030.0,2.70065571]
[1747201972347,0.20102071,104040.0,104030.0,2.70065571]
[1747201972949,0.20102071,104040.0,104030.0,2.84696617]
[1747201973149,0.23332071,104040.0,104030.0,2.84696617]
[1747201974146,0.23332071,104040.0,104030.0,2.76931926]
[1747201974345,0.26492071,104040.0,104030.0,2.78426617]
[1747201975451,0.26492071,104040.0,104030.0,2.84726617]
[1747201979353,0.26492071,104040.0,104030.0,3.04278946]
[1747201980260,0.26492071,104040.0,104030.0,2.68198946]
[1747201984051,0.26492071,104040.0,104030.0,2.60434255]
[1747201984257,0.26492071,104040.0,104030.0,2.68198946]
[1747201987854,0.16962071,104040.0,104030.0,2.68198946]
[1747201988151,0.16962071,104040.0,104030.0,2.60434255]
[1747201988558,0.16962071,104040.0,104030.0,2.68198946]
[1747201990554,0.16962071,104040.0,104030.0,2.60434255]
[1747201990754,0.16962071,104040.0,104030.0,2.68198946]
[1747201991363,0.20282071,104040.0,104030.0,2.68198946]
[1747201991567,0.26462071,104040.0,104030.0,2.68198946]
[1747201991953,0.26462071,104040.0,104030.0,2.535679]
[1747201994763,0.26462071,104040.0,104030.0,2.34015571]
[1747201995164,0.26462071,104040.0,104030.0,1.97935571]
[1747201995465,0.26462071,104040.0,104030.0,2.34015571]
[1747201995662,0.23412071,104040.0,104030.0,2.34015571]
[1747201995862,0.20282071,104040.0,104030.0,2.34015571]
[1747201996764,0.16962071,104040.0,104030.0,2.34015571]
[1747202000465,0.16962071,104040.0,104030.0,2.2625088]
[1747202000655,0.16962071,104040.0,104030.0,2.34015571]
[1747202001655,0.47041092,104040.0,104030.0,0.13232149]
[1747202001852,1.02464401,104040.0,104030.0,0.32458329]
[1747202002257,1.02464401,104040.0,104030.0,0.4022302]
[1747202002458,0.66384401,104040.0,104030.0,0.4022302]
[1747202003267,0.66384401,104040.0,104030.0,0.32458329]
[1747202003767,1.02464401,104040.0,104030.0,0.4022302]
[1747202004071,0.66384401,104040.0,104030.0,0.4022302]
[1747202006572,1.02464401,104040.0,104030.0,0.4022302]
[1747202008467,1.10229092,104040.0,104030.0,0.09912149]
[1747202008662,1.10229092,104040.0,104030.0,0.003]
[1747202009169,1.17993783,104040.0,104030.0,0.003]
[1747202009767,1.10229092,104040.0,104030.0,0.003]
[1747202010767,1.17993783,104040.0,104030.0,0.003]
[1747202010968,1.10229092,104040.0,104030.0,0.003]
[1747202011369,1.19841093,104040.0,104030.0,0.003]
[1747202012277,0.1922618,104030.0,104020.0,0.39736521]
[1747202012468,0.8602418,104030.0,104020.0,0.39736521]
[1747202012776,0.8602418,104030.0,104020.0,0.34929531]
[1747202013075,1.0222418,104030.0,104020.0,0.34929531]
[1747202013278,1.0222418,104030.0,104020.0,1.84929531]
[1747202013468,1.0222418,104030.0,104020.0,1.85329531]
[1747202014077,1.0222418,104030.0,104020.0,1.85629531]
[1747202016176,1.02786251,104030.0,104020.0,1.85629531]
[1747202016776,1.02786251,104030.0,104020.0,1.7786484]
[1747202017078,1.02786251,104030.0,104020.0,1.85629531]
[1747202020573,1.02786251,104030.0,104020.0,1.88749531]
[1747202021078,1.02786251,104030.0,104020.0,1.61594691]
[1747202021379,1.02786251,104030.0,104020.0,1.7305803]
[1747202021572,1.02786251,104030.0,104020.0,1.80822721]
[1747202021877,1.02786251,104030.0,104020.0,1.5383]
[1747202022079,1.02786251,104030.0,104020.0,1.80822721]
[1747202022378,1.02786251,104030.0,104020.0,1.7305803]
[1747202022572,1.02786251,104030.0,104020.0,1.80822721]
[1747202023677,1.02786251,104030.0,104020.0,0.2305803]
[1747202023876,1.10550942,104030.0,104020.0,0.0383]
[1747202024173,1.02786251,104030.0,104020.0,0.2305803]
[1747202026478,1.02786251,104030.0,104020.0,0.30822721]
[1747202026776,1.02786251,104030.0,104020.0,0.33862721]
[1747202027476,1.02786251,104030.0,104020.0,0.2609803]
[1747202027778,1.02786251,104030.0,104020.0,0.2914803]
[1747202028377,1.02786251,104030.0,104020.0,0.36912721]
[1747202029479,1.02786251,104030.0,104020.0,0.2914803]
[1747202029679,1.02786251,104030.0,104020.0,0.36912721]
[1747202030384,1.02786251,104030.0,104020.0,0.2914803]
[1747202031874,0.81818251,104030.0,104020.0,0.2914803]
[1747202032073,1.23822251,104030.0,104020.0,0.2914803]
[1747202047799,1.23822251,104030.0,104020.0,0.2874803]
[1747202047997,1.24122251,104030.0,104020.0,0.2874803]
[1747202049201,1.24422251,104030.0,104020.0,0.2844803]
[1747202052202,0.88342251,104030.0,104020.0,0.2844803]
[1747202052400,1.24422251,104030.0,104020.0,0.2844803]
[1747202054499,1.24422251,104030.0,104020.0,1.7844803]
[1747202056201,1.24422251,104030.0,104020.0,1.86212721]
[1747202056402,0.96906251,104030.0,104020.0,1.86212721]
[1747202056597,1.17750251,104030.0,104020.0,1.95825794]
[1747202056908,0.57576251,104030.0,104020.0,2.03590485]
[1747202057098,0.38350071,104030.0,104020.0,2.03590485]
[1747202057305,0.57576251,104030.0,104020.0,2.39670485]
[1747202057700,0.36588251,104030.0,104020.0,2.31905794]
[1747202058001,0.57468251,104030.0,104020.0,1.95825794]
[1747202059607,0.36588251,104030.0,104020.0,1.95825794]
[1747202059807,0.57468251,104030.0,104020.0,1.95825794]
[1747202061508,0.38242071,104030.0,104020.0,1.95825794]
[1747202064809,0.57468251,104030.0,104020.0,1.95825794]
[1747202066110,0.60618251,104030.0,104020.0,1.95825794]
[1747202068709,0.60618251,104030.0,104020.0,0.18833073]
[1747202068908,0.67058251,104030.0,104020.0,0.18833073]
[1747202069308,0.67058251,104030.0,104020.0,0.38061103]
[1747202072107,0.67058251,104030.0,104020.0,0.18833073]
[1747202072303,0.67058251,104030.0,104020.0,0.38061103]
[1747202072812,0.46178251,104030.0,104020.0,0.38061103]
[1747202073018,0.67058251,104030.0,104020.0,0.45825794]
[1747202083320,0.17362071,104030.0,104020.0,0.89670485]
[1747202084016,0.17362071,104030.0,104020.0,2.39670485]
[1747202084625,0.17162071,104030.0,104020.0,2.39670485]
[1747202085027,0.17062071,104030.0,104020.0,2.39670485]
[1747202085725,0.36288251,104030.0,104020.0,2.39670485]
[1747202085926,0.17062071,104030.0,104020.0,2.39670485]
[1747202086125,0.36288251,104030.0,104020.0,2.31905794]
[1747202086325,0.36288251,104030.0,104020.0,2.39670485]
[1747202086526,0.17062071,104030.0,104020.0,2.39670485]
[1747202087523,0.17062071,104030.0,104020.0,2.54339277]
[1747202093121,0.17062071,104030.0,104020.0,2.62103968]
[1747202093527,0.17062071,104030.0,104020.0,2.54339277]
[1747202093732,0.17062071,104030.0,104020.0,1.04339277]
[1747202094226,0.00862071,104030.0,104020.0,2.54339277]
[1747202094422,0.00762071,104030.0,104020.0,2.54339277]
[1747202094733,0.00562071,104030.0,104020.0,2.54439277]
[1747202096634,0.00562071,104030.0,104020.0,2.73991606]
[1747202098835,0.00562071,104030.0,104020.0,2.83604806]
[1747202100526,1e-08,104030.0,104020.0,2.91369497]
[1747202101434,1e-08,104030.0,104020.0,2.83604806]
[1747202102628,1e-08,104030.0,104020.0,3.12129497]
[1747202103031,1e-08,104030.0,104020.0,3.04364806]
[1747202105543,0.04310701,104050.0,104040.0,0.1922433]
[1747202105833,0.01130701,104050.0,104040.0,0.70833712]
[1747202106038,0.01130701,104050.0,104040.0,0.80553712]
[1747202106239,0.17330701,104050.0,104040.0,0.91607185]
[1747202106434,0.20530701,104050.0,104040.0,2.41607185]
[1747202106640,0.20530701,104050.0,104040.0,2.33842494]
[1747202106839,0.20830701,104050.0,104040.0,2.33842494]
[1747202108141,0.21230701,104050.0,104040.0,2.33842494]
[1747202108332,0.24420701,104050.0,104040.0,2.33842494]
[1747202108841,0.24420701,104050.0,104040.0,2.26077803]
[1747202109039,0.24420701,104050.0,104040.0,2.33842494]
[1747202109841,0.27600701,104050.0,104040.0,2.33842494]
[1747202110840,0.27600701,104050.0,104040.0,2.26077803]
[1747202111033,0.27600701,104050.0,104040.0,2.33842494]
[1747202112942,0.27600701,104050.0,104040.0,2.26077803]
[1747202113242,0.27600701,104050.0,104040.0,2.33842494]
[1747202119545,0.28162772,104050.0,104040.0,2.33842494]
[1747202119745,0.47385252,104050.0,104040.0,2.33842494]
[1747202123143,0.47385252,104050.0,104040.0,0.75962094]
[1747202123747,0.47385252,104050.0,104040.0,1.89882094]
[1747202124551,0.47385252,104050.0,104040.0,1.82117403]
[1747202125143,0.76273943,104050.0,104040.0,1.62893073]
[1747202125344,1.12353943,104050.0,104040.0,0.09613073]
[1747202127444,0.1922433,104040.0,104030.0,2.23074482]
[1747202127645,0.4994233,104040.0,104030.0,2.03848792]
[1747202127845,0.93787021,104040.0,104030.0,1.62711225]
[1747202128041,0.93787021,104040.0,104030.0,1.59611225]
[1747202128239,0.1922618,104030.0,104020.0,0.64283842]
[1747202128443,0.4680818,104030.0,104020.0,0.64283842]
[1747202128744,0.4680818,104030.0,104020.0,2.23895991]
[1747202128943,0.8288818,104030.0,104020.0,2.23895991]
[1747202129146,0.9908818,104030.0,104020.0,2.23895991]
[1747202130248,0.9918818,104030.0,104020.0,2.23895991]
[1747202130442,0.9918818,104030.0,104020.0,2.26945991]
[1747202130951,0.9978818,104030.0,104020.0,2.26945991]
[1747202131137,0.9978818,104030.0,104020.0,1.9272487]
[1747202132545,0.9978818,104030.0,104020.0,1.81910179]
[1747202132853,0.9978818,104030.0,104020.0,1.8967487]
[1747202133142,1.0307818,104030.0,104020.0,1.8967487]
[1747202135852,1.03640251,104030.0,104020.0,1.8967487]
[1747202136045,1.03640251,104030.0,104020.0,1.9583487]
[1747202136551,1.03640251,104030.0,104020.0,1.88070179]
[1747202136752,1.03640251,104030.0,104020.0,1.9583487]
[1747202137352,0.82508251,104030.0,104020.0,1.9583487]
[1747202137547,1.24820251,104030.0,104020.0,0.4583487]
[1747202138052,1.24820251,104030.0,104020.0,1.9583487]
[1747202138752,1.24820251,104030.0,104020.0,0.4583487]
[1747202138955,1.24820251,104030.0,104020.0,0.2660684]
[1747202139345,1.32584942,104030.0,104020.0,0.12682149]
[1747202140153,1.24820251,104030.0,104020.0,0.12682149]
[1747202141155,1.24820251,104030.0,104020.0,0.31910179]
[1747202141740,1.24820251,104030.0,104020.0,0.12682149]
[1747202141944,1.24820251,104030.0,104020.0,0.0307]
[1747202143246,1.32584942,104030.0,104020.0,0.0307]
[1747202146047,0.90272942,104030.0,104020.0,0.0307]
[1747202146243,1.24644251,104030.0,104020.0,0.0307]
[1747202147856,1.32408942,104030.0,104020.0,0.0307]
[1747202157565,0.1922803,104020.0,104010.0,0.80447274]
[1747202157766,0.2552803,104020.0,104010.0,0.80447274]
[1747202158054,0.2552803,104020.0,104010.0,0.71412953]
[1747202158260,0.4478803,104020.0,104010.0,0.71412953]
[1747202158755,0.88832721,104020.0,104010.0,0.16103073]
[1747202158960,0.89032721,104020.0,104010.0,0.0649]
[1747202159161,0.89032721,104020.0,104010.0,0.2571988]
[1747202159763,0.8126803,104020.0,104010.0,0.2571988]
[1747202160854,0.8126803,104020.0,104010.0,0.2888988]
[1747202162861,0.8126803,104020.0,104010.0,0.0966]
[1747202163065,0.8126803,104020.0,104010.0,0.2888988]
[1747202163766,0.8126803,104020.0,104010.0,0.0966]
[1747202164067,0.8156803,104020.0,104010.0,0.2898988]
[1747202164662,0.8186803,104020.0,104010.0,0.2908988]
[1747202166267,0.82430101,104020.0,104010.0,0.2908988]
[1747202166569,0.82430101,104020.0,104010.0,0.0986]
[1747202166769,0.82430101,104020.0,104010.0,0.2908988]
[1747202166970,0.82430101,104020.0,104010.0,0.0986]
[1747202167269,0.82430101,104020.0,104010.0,0.2908988]
[1747202174469,0.82430101,104020.0,104010.0,0.0986]
[1747202175372,0.8186803,104020.0,104010.0,0.0986]
[1747202179879,0.4578803,104020.0,104010.0,0.0986]
[1747202180073,0.8186803,104020.0,104010.0,0.0986]
[1747202180276,0.4578803,104020.0,104010.0,0.0986]
[1747202180579,0.8186803,104020.0,104010.0,0.0986]
[1747202181479,0.82430101,104020.0,104010.0,0.0986]
[1747202186382,0.90194792,104020.0,104010.0,0.0337]
[1747202187382,0.90194792,104020.0,104010.0,0.0977]
[1747202188182,0.82430101,104020.0,104010.0,0.0977]
[1747202193080,0.90194792,104020.0,104010.0,0.0977]
[1747202196681,0.82430101,104020.0,104010.0,0.0977]
[1747202197484,0.46350101,104020.0,104010.0,0.0977]
[1747202197688,0.82430101,104020.0,104010.0,0.0977]
[1747202198389,0.46350101,104020.0,104010.0,0.0977]
[1747202198688,0.82430101,104020.0,104010.0,0.0977]
[1747202201899,1.24078101,104020.0,104010.0,0.0977]
[1747202206797,1.24078101,104020.0,104010.0,0.0658]
[1747202207098,1.75687483,104020.0,104010.0,0.0337]
[1747202207492,1.67922792,104020.0,104010.0,0.0337]
[1747202212705,1.75687483,104020.0,104010.0,0.002]
[1747202212895,1.75687483,104020.0,104010.0,0.0344]
[1747202219505,1.34039483,104020.0,104010.0,0.0344]
[1747202219808,1.75511483,104020.0,104010.0,0.0344]
[1747202220509,1.75511483,104020.0,104010.0,1e-07]
[1747202220698,1.75511483,104020.0,103990.0,0.00192317]
[1747202220699,0.1923173,104000.0,103990.0,0.00192317]
[1747202220896,1.48393112,104000.0,103990.0,0.00192317]
[1747202221101,1.66148421,104000.0,103990.0,0.00192317]
[1747202222304,1.66248421,104000.0,103990.0,0.00192317]
[1747202222700,1.74013112,104000.0,103990.0,0.00292317]
[1747202223005,1.74013112,104000.0,103980.0,0.02286701]
[1747202223006,0.1923358,103990.0,103980.0,0.02286701]
[1747202223303,0.88438271,103990.0,103980.0,0.02286701]
[1747202223712,0.88438271,103990.0,103980.0,0.05356701]
[1747202224717,0.89416143,103990.0,103980.0,0.05356701]
[1747202225207,0.89516143,103990.0,103980.0,0.05556701]
[1747202225411,0.89516143,103990.0,103980.0,0.08676701]
[1747202226105,0.73878214,103990.0,103980.0,0.11786701]
[1747202228117,0.90078214,103990.0,103980.0,0.11786701]
[1747202228916,0.90078214,103990.0,103980.0,0.05656701]
[1747202230005,1.99190214,103990.0,103980.0,0.003]
[1747202230415,1.99190214,103990.0,103980.0,0.01720259]
[1747202231308,1.99190214,103990.0,103980.0,0.04830259]
[1747202233817,1.99190214,103990.0,103980.0,0.01720259]
[1747202234014,0.1923542,103980.0,103970.0,0.0326]
[1747202234210,1.30256111,103980.0,103970.0,0.0326]
[1747202234615,1.2249142,103980.0,103970.0,0.0967]
[1747202235310,1.2259142,103980.0,103970.0,0.1007]
[1747202235510,1.2259142,103980.0,103970.0,0.1027]
[1747202236119,1.0639142,103980.0,103970.0,0.1027]
[1747202236321,1.0639142,103980.0,103970.0,0.0997]
[1747202237020,1.14656111,103980.0,103970.0,0.0997]
[1747202237220,1.30856111,103980.0,103970.0,0.0997]
[1747202237817,1.30856111,103980.0,103960.0,0.27003801]
[1747202237818,0.1923727,103970.0,103960.0,0.06831761]
[1747202238019,0.2549727,103970.0,103960.0,0.06831761]
[1747202238222,0.6692127,103970.0,103960.0,0.16449457]
[1747202238408,0.6692127,103970.0,103960.0,0.35688587]
[1747202238925,0.6732127,103970.0,103960.0,0.35688587]
[1747202239121,0.6772127,103970.0,103960.0,0.35688587]
[1747202240120,0.7099127,103970.0,103960.0,0.35688587]
[1747202240719,0.7099127,103970.0,103960.0,0.16449457]
[1747202241225,0.7099127,103970.0,103960.0,0.26079457]
[1747202241415,0.7099127,103970.0,103960.0,0.45318587]
[1747202243514,0.71553341,103970.0,103960.0,0.45318587]
[1747202244117,0.71553341,103970.0,103960.0,0.26079457]
[1747202244311,0.71553341,103970.0,103960.0,0.45318587]
[1747202244716,0.71553341,103970.0,103960.0,0.26079457]
[1747202244921,0.71553341,103970.0,103960.0,0.45318587]
[1747202245416,0.7099127,103970.0,103960.0,0.45318587]
[1747202247133,0.7099127,103970.0,103960.0,0.19699457]
[1747202247332,0.7099127,103970.0,103960.0,0.38938587]
[1747202248429,0.7099127,103970.0,103960.0,0.45398587]
[1747202262242,0.7099127,103970.0,103960.0,0.38566826]
[1747202263845,0.7099127,103970.0,103960.0,0.35426826]
[1747202264336,0.7099127,103970.0,103960.0,0.32106826]
[1747202264729,0.7099127,103970.0,103960.0,1.89871517]
[1747202265240,0.7099127,103970.0,103960.0,2.04540309]
[1747202268139,0.7099127,103970.0,103960.0,1.96775618]
[1747202268343,0.7099127,103970.0,103960.0,2.04540309]
[1747202269948,1.14835961,103970.0,103960.0,0.24286488]
[1747202270134,1.0707127,103970.0,103960.0,0.25710133]
[1747202272651,1.14835961,103970.0,103960.0,0.25710133]
[1747202273238,1.14835961,103970.0,103960.0,0.16092437]
[1747202273652,1.14835961,103970.0,103960.0,0.01423645]
[1747202274238,1.31035961,103970.0,103960.0,0.01423645]
[1747202276938,1.31598032,103970.0,103960.0,0.01423645]
[1747202277940,1.31035961,103970.0,103960.0,0.01423645]
[1747202281050,1.31598032,103970.0,103960.0,0.01423645]
[1747202283451,1.67678032,103970.0,103960.0,0.01423645]
[1747202285956,1.67115961,103970.0,103960.0,0.01423645]
[1747202287054,1.67678032,103970.0,103960.0,0.01423645]
[1747202289149,1.67115961,103970.0,103960.0,0.01423645]
[1747202289964,1.67115961,103970.0,103950.0,0.00192391]
[1747202289965,0.1923913,103960.0,103950.0,0.00192391]
[1747202290158,0.88893821,103960.0,103950.0,0.00192391]
[1747202290351,0.88893821,103960.0,103940.0,0.0932]
[1747202290352,0.1924098,103950.0,103940.0,0.0301]
[1747202290549,0.1924283,103940.0,103930.0,2.12108543]
[1747202290760,0.38058774,103940.0,103930.0,0.22658543]
[1747202291058,0.38058774,103940.0,103930.0,0.32277164]
[1747202291262,0.30294083,103940.0,103930.0,0.32277164]
[1747202291666,0.30294083,103940.0,103930.0,0.51521844]
[1747202291863,0.30294083,103940.0,103930.0,0.32277164]
[1747202292264,0.46594083,103940.0,103930.0,0.32477164]
[1747202292763,0.46594083,103940.0,103930.0,0.32677164]
[1747202293166,0.30394083,103940.0,103930.0,0.32677164]
[1747202293957,0.71790083,103940.0,103930.0,0.32677164]
[1747202294352,0.71790083,103940.0,103930.0,0.13124835]
[1747202294768,0.72764175,103940.0,103930.0,0.13124835]
[1747202296676,0.72764175,103940.0,103930.0,0.40134206]
[1747202296878,0.72764175,103940.0,103930.0,0.46474206]
[1747202297373,0.72764175,103940.0,103930.0,0.19464835]
[1747202298378,0.72764175,103940.0,103930.0,0.27229526]
[1747202299980,1.08844175,103940.0,103930.0,0.27229526]
[1747202300580,1.08844175,103940.0,103930.0,0.46474206]
[1747202300773,1.08844175,103940.0,103930.0,0.27229526]
[1747202301484,1.08844175,103940.0,103930.0,0.19464835]
[1747202301781,1.08844175,103940.0,103930.0,0.27229526]
[1747202302383,1.08844175,103940.0,103930.0,0.20889526]
[1747202302572,1.08844175,103940.0,103930.0,0.13124835]
[1747202305886,1.16608866,103940.0,103930.0,0.13124835]
[1747202306675,1.08844175,103940.0,103930.0,0.13124835]
[1747202307785,1.08844175,103940.0,103930.0,0.14589092]
[1747202311892,1.08844175,103940.0,103930.0,0.04970471]
[1747202312078,2.41976866,103940.0,103930.0,0.01960471]
[1747202312484,2.42538937,103940.0,103930.0,0.01960471]
[1747202312783,2.50303628,103940.0,103930.0,0.01960471]
[1747202312992,2.42538937,103940.0,103930.0,0.01960471]
[1747202313190,2.50303628,103940.0,103930.0,0.01960471]
[1747202313885,2.42538937,103940.0,103930.0,0.01960471]
[1747202315479,2.41976866,103940.0,103930.0,0.01960471]
[1747202323881,2.41956866,103940.0,103930.0,0.01960471]
[1747202327690,2.00580866,103940.0,103930.0,0.01960471]
[1747202327888,2.41956866,103940.0,103930.0,0.01960471]
[1747202331296,1.92816175,103940.0,103930.0,0.28969842]
[1747202331485,1.98096175,103940.0,103930.0,0.12985162]
[1747202331686,1.56736175,103940.0,103930.0,0.12985162]
[1747202331885,1.98096175,103940.0,103930.0,0.12985162]
[1747202332088,2.17976175,103940.0,103930.0,0.12985162]
[1747202334192,2.17976175,103940.0,103930.0,0.05220471]
[1747202334597,2.17976175,103940.0,103930.0,0.12985162]
[1747202335999,2.17976175,103940.0,103930.0,0.05220471]
[1747202336901,1.76616175,103940.0,103930.0,0.05220471]
[1747202337104,2.17976175,103940.0,103930.0,0.05220471]
[1747202341394,2.17972175,103940.0,103930.0,0.05220471]
[1747202349307,1.81888175,103940.0,103930.0,0.12985162]
[1747202349600,1.37466175,103940.0,103930.0,0.46434533]
[1747202349803,1.53464922,103940.0,103930.0,0.84371239]
[1747202350003,1.53464922,103940.0,103930.0,0.8493331]
[1747202350205,1.53464922,103940.0,103930.0,2.5113331]
[1747202350403,0.44296922,103940.0,103930.0,2.5113331]
[1747202350799,0.47576922,103940.0,103930.0,2.5113331]
[1747202351000,0.47576922,103940.0,103930.0,2.50571239]
[1747202351601,0.5435444,103950.0,103940.0,0.1924283]
[1747202351803,0.5743444,103950.0,103940.0,0.43972212]
[1747202352298,0.5743444,103950.0,103940.0,0.71257866]
[1747202352809,0.6049444,103950.0,103940.0,0.71257866]
[1747202353309,0.6059444,103950.0,103940.0,0.71357866]
[1747202354811,0.3991444,103950.0,103940.0,0.71357866]
[1747202355110,0.6059444,103950.0,103940.0,0.71357866]
[1747202355714,0.61570926,103950.0,103940.0,0.71357866]
[1747202356216,0.56760286,103950.0,103940.0,0.71357866]
[1747202356904,0.56760286,103950.0,103940.0,0.57443175]
[1747202357209,0.59820286,103950.0,103940.0,0.57443175]
[1747202357804,0.59820286,103950.0,103940.0,0.60463175]
[1747202358318,0.59820286,103950.0,103940.0,0.44263175]
[1747202358613,0.59820286,103950.0,103940.0,0.47293175]
[1747202359910,0.59820286,103950.0,103940.0,0.55057866]
[1747202360209,0.5403316,103950.0,103940.0,0.91137866]
[1747202360409,0.5403316,103950.0,103940.0,0.75608484]
[1747202360711,0.5403316,103950.0,103940.0,0.83373175]
[1747202361012,0.3029316,103950.0,103940.0,0.91137866]
[1747202361310,0.3029316,103950.0,103940.0,1.16958266]
[1747202361614,0.3029316,103950.0,103940.0,2.66958266]
[1747202362118,0.254826,103950.0,103940.0,2.66958266]
[1747202362506,0.254826,103950.0,103940.0,2.57337866]
[1747202363014,0.0624,103950.0,103940.0,2.57337866]
[1747202363205,0.2548098,103950.0,103940.0,2.57337866]
[1747202363405,0.0624,103950.0,103940.0,2.57337866]
[1747202363613,0.2548098,103950.0,103940.0,2.57337866]
[1747202363814,0.0624,103950.0,103940.0,2.57337866]
[1747202364617,0.001,103950.0,103940.0,2.57337866]
[1747202365611,0.001,103950.0,103940.0,2.732587]
[1747202365811,0.063,103960.0,103950.0,0.1924098]
[1747202366011,0.063,103960.0,103950.0,0.72325671]
[1747202366211,0.063,103960.0,103950.0,0.88525671]
[1747202366503,0.063,103960.0,103950.0,0.98145217]
[1747202367016,0.065,103960.0,103950.0,2.48245217]
[1747202367215,0.0973,103960.0,103950.0,2.48245217]
[1747202367607,0.0993,103960.0,103950.0,2.48245217]
[1747202374416,0.0993,103960.0,103950.0,2.84325217]
[1747202375819,0.2916913,103960.0,103950.0,2.84325217]
[1747202376008,0.0993,103960.0,103950.0,2.84325217]
[1747202376911,0.2916913,103960.0,103950.0,2.84325217]
[1747202377718,0.0993,103960.0,103950.0,2.84325217]
[1747202378523,0.2916913,103960.0,103950.0,2.84325217]
[1747202379119,0.2916913,103960.0,103950.0,2.68125217]
[1747202380122,0.0993,103960.0,103950.0,2.84325217]
[1747202380926,0.2916913,103960.0,103950.0,2.84325217]
[1747202381121,0.0993,103960.0,103950.0,2.84325217]
[1747202381308,0.0993,103960.0,103950.0,2.68125217]
[1747202382124,0.0993,103960.0,103950.0,1.95965217]
[1747202382321,0.0993,103960.0,103950.0,2.68125217]
[1747202382722,0.2916913,103960.0,103950.0,2.68125217]
[1747202383129,0.0993,103960.0,103950.0,2.68125217]
[1747202383824,0.2916913,103960.0,103950.0,2.68125217]
[1747202384826,0.2916913,103960.0,103950.0,2.61885217]
[1747202385727,0.2916913,103960.0,103950.0,1.89725217]
[1747202385928,0.2916913,103960.0,103950.0,2.61885217]
[1747202389430,0.2916913,103960.0,103950.0,2.81437546]
[1747202392727,0.2916913,103960.0,103950.0,2.73672855]
[1747202392930,0.2916913,103960.0,103950.0,2.81437546]
[1747202397130,0.2916913,103960.0,103950.0,2.09277546]
[1747202397328,0.2916913,103960.0,103950.0,2.81437546]
[1747202398324,0.2916913,103960.0,103950.0,3.23644867]
[1747202402635,0.0993,103960.0,103950.0,3.29904867]
[1747202402830,0.2066,103970.0,103960.0,0.1923913]
[1747202403030,0.4312727,103970.0,103960.0,0.77098512]
[1747202403232,0.2246727,103970.0,103960.0,0.80368512]
[1747202403435,0.2246727,103970.0,103960.0,2.39987133]
[1747202403636,0.0323,103970.0,103960.0,2.39987133]
[1747202404226,0.0333,103970.0,103960.0,2.40087133]
[1747202404531,0.0333,103970.0,103960.0,2.59658488]
[1747202405126,0.0363,103970.0,103960.0,2.59658488]
[1747202405429,0.0363,103970.0,103960.0,2.61104052]
[1747202405822,0.001,103970.0,103960.0,2.95738488]
[1747202406023,0.002,103970.0,103960.0,3.16378488]
[1747202406226,0.0929,103980.0,103970.0,0.1923727]
[1747202406427,0.0929,103980.0,103970.0,0.72711961]
[1747202406631,0.0929,103980.0,103970.0,0.6494727]
[1747202406838,0.0929,103980.0,103970.0,0.82330582]
[1747202407436,0.0989,103980.0,103970.0,0.82430582]
[1747202408130,0.003,103980.0,103970.0,0.90195273]
[1747202408331,0.004,103980.0,103970.0,0.90195273]
[1747202408732,0.004,103980.0,103970.0,0.91175974]
[1747202408934,0.004,103980.0,103970.0,2.75403967]
[1747202409132,0.004,103980.0,103970.0,2.90623266]
[1747202409524,0.0929,103990.0,103980.0,0.1923542]
[1747202409731,0.2852358,103990.0,103980.0,0.72660111]
[1747202410038,0.2852358,103990.0,103980.0,0.6489542]
[1747202410240,0.2852358,103990.0,103980.0,0.79037807]
[1747202410734,0.2852358,103990.0,103980.0,0.80461287]
[1747202410944,0.2852358,103990.0,103980.0,0.67993116]
[1747202411128,0.52488271,103990.0,103980.0,0.09617696]
[1747202411434,1.09304271,103990.0,103980.0,0.09617696]
[1747202411629,0.1923542,103980.0,103970.0,0.70952193]
[1747202411826,0.4625542,103980.0,103970.0,0.66142903]
[1747202412028,0.4625542,103980.0,103970.0,2.35486436]
[1747202412228,0.6245542,103980.0,103970.0,2.35486436]
[1747202413035,0.6275542,103980.0,103970.0,2.35586436]
[1747202413634,0.6295542,103980.0,103970.0,2.35586436]
[1747202414227,0.6295542,103980.0,103970.0,1.91631681]
[1747202414838,0.6295542,103980.0,103970.0,2.24651681]
[1747202415039,0.6295542,103980.0,103970.0,1.83762391]
[1747202415429,0.70720111,103980.0,103970.0,1.78953101]
[1747202415628,0.78484802,103980.0,103970.0,0.09716771]
[1747202415838,0.70720111,103980.0,103970.0,0.1933727]
[1747202416337,0.70720111,103980.0,103970.0,1.6933727]
[1747202416540,1.14564802,103980.0,103970.0,0.001]
[1747202416740,1.24182402,103980.0,103970.0,0.001]
[1747202416940,1.24744473,103980.0,103970.0,0.001]
[1747202417442,1.21069834,103980.0,103970.0,0.01519611]
[1747202417739,1.11452234,103980.0,103970.0,0.01519611]
[1747202418040,1.10890163,103980.0,103970.0,0.01519611]
[1747202423444,1.10890163,103980.0,103970.0,1e-08]
[1747202423634,0.1924283,103940.0,103930.0,0.65762922]
[1747202423841,0.1924283,103940.0,103930.0,0.88157602]
[1747202424033,0.1924283,103940.0,103930.0,0.97775298]
[1747202424241,0.2541283,103940.0,103930.0,1.0240191]
[1747202424535,0.2541283,103940.0,103930.0,2.64256653]
[1747202424735,0.2551283,103940.0,103930.0,2.64756653]
[1747202424934,0.2865283,103940.0,103930.0,2.68016653]
[1747202426542,0.2865283,103940.0,103930.0,2.33803333]
[1747202426738,0.2865283,103940.0,103930.0,2.34303333]
[1747202426931,0.002,103940.0,103930.0,2.35728932]
[1747202427130,0.002,103940.0,103930.0,2.51928932]
[1747202428841,0.002,103940.0,103930.0,2.55148932]
[1747202429438,0.002,103940.0,103930.0,2.69790897]
[1747202429640,0.002,103940.0,103930.0,1.19790897]